bitfinex-derivatives/quotes_SOLF0:USTF0_20250817
["timestamp","ask_amount","ask_price","bid_price","bid_amount"]
[1755403946810,2.9,192.59,192.48,0.79]
[1755403946811,2.9,192.56,192.48,0.79]
[1755403947012,4.8228325,192.55,192.48,0.79]
[1755403947211,2.9,192.54,192.48,0.79]
[1755403947403,2.9,192.54,192.49,5.1917]
[1755403947606,2.9,192.54,192.5,0.79]
[1755403947813,2.9,192.58,192.5,2.06641605]
[1755403948111,4.8231864,192.57,192.51,0.79]
[1755403948410,2.06641605,192.62,192.51,5.981]
[1755403948411,2.9,192.56,192.51,5.981]
[1755403948613,2.9,192.61,192.51,0.79]
[1755403948807,2.9,192.59,192.53,5.9806]
[1755403949609,2.9,192.59,192.53,5.1906]
[1755403949812,2.9,192.59,192.52,5.1909]
[1755403951112,2.9,192.59,192.52,5.9809]
[1755403957318,2.9,192.59,192.54,0.79]
[1755403957520,2.9,192.59,192.55,0.79]
[1755403957718,2.9,192.59,192.53,2.85641605]
[1755403958221,2.9,192.59,192.51,0.79]
[1755403958717,10.55774117,192.58,192.47,2.85641605]
[1755403958920,2.9,192.56,192.45,0.79]
[1755403959224,2.9,192.54,192.45,0.79]
[1755403959415,2.9,192.54,192.45,5.9826]
[1755403959616,2.9,192.54,192.46,0.79]
[1755403961510,2.9,192.54,192.46,5.9825]
[1755403961715,2.9,192.54,192.46,0.79]
[1755403962417,2.9,192.54,192.39,348.88]
[1755403962418,2.9,192.52,192.42,0.79]
[1755403962614,2.9,192.5,192.42,0.79]
[1755403963216,2.9,192.5,192.41,7.26011605]
[1755403963424,2.9,192.5,192.4,0.79]
[1755403963825,4.79185599,192.49,192.4,0.79]
[1755403964020,2.9,192.48,192.4,5.9841]
[1755403965019,2.9,192.48,192.41,5.1939]
[1755403967023,2.9,192.48,192.4,5.1941]
[1755403967214,2.9,192.48,192.39,349.67]
[1755403967416,2.98,192.46,192.39,349.67]
[1755403967618,2.98,192.46,192.39,354.8643]
[1755403969520,2.98,192.46,192.38,2.06641605]
[1755403970619,2.98,192.46,192.38,2.85641605]
[1755403971326,2.98,192.46,192.39,0.79]
[1755403973929,2.98,192.46,192.29,0.79]
[1755403973930,5.04641605,192.46,192.29,0.79]
[1755403974134,7.75969378,192.45,192.34,0.79]
[1755403974333,2.98,192.45,192.34,0.79]
[1755403974535,2.98,192.45,192.34,5.1957]
[1755403974729,2.98,192.45,192.35,0.79]
[1755403976128,2.98,192.45,192.37,0.79]
[1755403976533,2.98,192.45,192.38,5.1945]
[1755403976729,2.98,192.45,192.39,0.79]
[1755403977133,2.98,192.45,192.37,5.1949]
[1755403977329,2.98,192.45,192.37,5.9849]
[1755403977534,2.98,192.45,192.38,0.79]
[1755403978136,2.98,192.45,192.38,5.9846]
[1755403978332,2.98,192.45,192.38,5.1946]
[1755403978530,2.98,192.45,192.39,0.79]
[1755403980531,2.98,192.45,192.37,0.79]
[1755403981337,2.98,192.45,192.36,2.06641605]
[1755403981838,2.98,192.45,192.36,0.79]
[1755403983240,2.98,192.45,192.37,5.1948]
[1755403983543,2.98,192.45,192.38,0.79]
[1755403984445,2.98,192.45,192.38,5.9846]
[1755403986242,2.98,192.45,192.39,0.79]
[1755403987148,2.98,192.45,192.38,5.9846]
[1755403987451,2.98,192.45,192.38,0.79]
[1755403988750,2.98,192.45,192.38,5.9846]
[1755403988956,2.98,192.45,192.39,0.79]
[1755403989951,2.98,192.45,192.37,5.9849]
[1755403990641,2.98,192.45,192.31,0.79]
[1755403990845,2.98,192.45,192.28,349.0]
[1755403990846,2.98,192.45,192.34,0.79]
[1755403991243,2.98,192.42,192.31,0.79]
[1755403991447,2.98,192.4,192.31,0.79]
[1755403991946,2.98,192.4,192.32,5.1961]
[1755403992143,2.98,192.4,192.33,0.79]
[1755403992852,2.98,192.4,192.31,5.1965]
[1755403993754,7.72379529,192.39,192.29,0.79]
[1755403993943,2.98,192.39,192.29,0.79]
[1755403997257,2.98,192.39,192.29,5.9871]
[1755403997459,2.98,192.39,192.3,0.8]
[1755403998153,4.74448959,192.38,192.3,0.8]
[1755403998354,2.92,192.37,192.3,0.8]
[1755403998853,2.92,192.37,192.26,2.06641605]
[1755403999063,2.92,192.35,192.24,5.1984]
[1755403999251,4.74454471,192.34,192.25,0.8]
[1755403999455,2.92,192.36,192.25,0.8]
[1755403999660,2.92,192.34,192.26,0.8]
[1755404000356,4.74511149,192.33,192.26,0.8]
[1755404000553,2.92,192.34,192.26,0.8]
[1755404000754,2.92,192.32,192.26,0.8]
[1755404000961,2.92,192.32,192.25,0.8]
[1755404002262,2.92,192.32,192.25,5.9981]
[1755404002466,2.92,192.39,192.3,0.8]
[1755404002665,2.92,192.37,192.3,0.8]
[1755404002859,2.06641605,192.43,192.31,0.8]
[1755404003062,2.92,192.34,192.3,5.1968]
[1755404003360,2.92,192.34,192.32,0.8]
[1755404003660,2.92,192.34,192.33,0.8]
[1755404003863,2.92,192.42,192.33,0.8]
[1755404004063,2.92,192.4,192.33,5.196]
[1755404004257,2.92,192.38,192.34,0.8]
[1755404004459,2.92,192.37,192.34,0.8]
[1755404004762,2.92,192.37,192.35,0.8]
[1755404004964,2.92,192.45,192.33,0.8]
[1755404005167,2.92,192.43,192.34,0.8]
[1755404005358,2.92,192.41,192.34,0.8]
[1755404005562,2.92,192.39,192.33,7.26241605]
[1755404005867,2.06641605,192.46,192.35,0.8]
[1755404005868,2.92,192.37,192.35,0.8]
[1755404006065,2.92,192.36,192.35,0.8]
[1755404007065,2.92,192.45,192.35,0.8]
[1755404007369,2.92,192.43,192.36,2.06641605]
[1755404007668,2.92,192.41,192.37,0.8]
[1755404007867,2.92,192.39,192.37,0.8]
[1755404008869,2.92,192.38,192.37,0.8]
[1755404010358,2.92,192.48,192.36,8.06141605]
[1755404010563,2.92,192.46,192.37,0.8]
[1755404010766,2.92,192.44,192.37,0.8]
[1755404010967,2.92,192.42,192.37,0.8]
[1755404011270,2.92,192.4,192.37,0.8]
[1755404011473,2.92,192.39,192.36,7.26141605]
[1755404011670,2.92,192.39,192.38,0.8]
[1755404012074,2.92,192.39,192.36,8.06141605]
[1755404012266,2.92,192.39,192.37,0.8]
[1755404012867,2.92,192.48,192.36,7.26141605]
[1755404013073,2.92,192.46,192.36,7.26141605]
[1755404013373,2.92,192.44,192.36,8.06141605]
[1755404013575,2.92,192.42,192.36,8.06141605]
[1755404013767,2.92,192.4,192.37,0.8]
[1755404014872,2.92,192.48,192.37,0.8]
[1755404015072,2.92,192.46,192.37,0.8]
[1755404015267,8.59512706,192.45,192.37,0.8]
[1755404015474,8.59512706,192.44,192.37,0.8]
[1755404015772,2.92,192.42,192.37,0.8]
[1755404015974,2.92,192.48,192.37,5.995]
[1755404016167,2.92,192.46,192.37,5.995]
[1755404016366,2.92,192.44,192.37,5.995]
[1755404016567,2.92,192.42,192.37,0.8]
[1755404018171,2.92,192.42,192.36,7.26161605]
[1755404018570,2.92,192.42,192.36,8.06161605]
[1755404022278,2.92,192.42,192.36,2.06641605]
[1755404022467,2.92,192.4,192.33,0.8]
[1755404022669,2.92,192.38,192.31,0.8]
[1755404023078,2.92,192.45,192.36,2.06641605]
[1755404023272,2.92,192.43,192.37,0.8]
[1755404023478,2.92,192.41,192.37,0.8]
[1755404023778,2.92,192.48,192.37,5.9949]
[1755404023978,2.92,192.46,192.37,5.9949]
[1755404024179,2.92,192.44,192.38,5.1946]
[1755404024378,2.92,192.42,192.36,2.06641605]
[1755404024568,2.92,192.42,192.36,2.86641605]
[1755404024772,2.92,192.42,192.37,5.9949]
[1755404025474,2.92,192.42,192.36,5.1952]
[1755404025777,2.92,192.42,192.36,5.9952]
[1755404028481,2.92,192.42,192.37,0.79]
[1755404035289,2.92,192.42,192.36,5.1952]
[1755404035290,2.93,192.48,192.38,0.79]
[1755404035587,2.93,192.46,192.38,0.79]
[1755404035887,2.93,192.44,192.38,5.1946]
[1755404036084,2.93,192.42,192.39,0.79]
[1755404036791,2.93,192.42,192.39,5.9843]
[1755404039098,2.93,192.42,192.39,0.79]
[1755404040597,2.93,192.42,192.38,5.1946]
[1755404040801,2.93,192.42,192.38,5.9846]
[1755404041501,2.93,192.42,192.38,5.1946]
[1755404041703,2.93,192.42,192.39,0.79]
[1755404042700,2.93,192.42,192.38,5.1946]
[1755404042906,2.93,192.42,192.38,5.9846]
[1755404043897,2.93,192.42,192.39,0.79]
[1755404044505,2.93,192.42,192.38,5.1946]
[1755404044700,2.93,192.42,192.38,5.9846]
[1755404048409,2.93,192.41,192.4,0.79]
[1755404048609,2.93,192.41,192.4,2.11978114]
[1755404049110,2.93,192.41,192.4,7.31388114]
[1755404050615,2.93,192.41,192.4,5.9841]
[1755404054115,2.93,192.41,192.4,5.1941]
[1755404055613,7.90205131,192.52,192.4,0.79]
[1755404055820,2.93,192.5,192.43,0.79]
[1755404056019,2.93,192.48,192.46,0.79]
[1755404056215,2.93,192.48,192.47,5.9823]
[1755404061124,2.93,192.48,192.47,5.1923]
[1755404061419,2.93,192.48,192.47,5.9823]
[1755404062817,2.82,192.57,192.49,5.1917]
[1755404063018,2.82,192.55,192.49,5.1917]
[1755404063617,2.82,192.55,192.48,0.79]
[1755404063618,2.82,192.55,192.48,5.982]
[1755404065615,2.82,192.55,192.49,5.1917]
[1755404066627,2.82,192.55,192.48,5.9819]
[1755404072629,2.82,192.55,192.5,1.32872824]
[1755404074632,2.82,192.55,192.49,0.79]
[1755404074827,2.82,192.55,192.49,2.11872824]
[1755404076132,2.82,192.55,192.49,1.32872824]
[1755404077132,2.82,192.55,192.49,6.52042824]
[1755404080122,2.82,192.55,192.49,7.31042824]
[1755404087141,2.82,192.55,192.49,6.52042824]
[1755404087341,2.82,192.55,192.49,7.31042824]
[1755404093236,4.78743983,192.54,192.49,6.52042824]
[1755404093442,2.76,192.53,192.5,0.79]
[1755404097140,2.76,192.53,192.49,1.32872824]
[1755404097346,8.54286499,192.52,192.47,2.11872824]
[1755404097644,2.76,192.51,192.47,0.79]
[1755404097946,63.08447442,192.63,192.39,2.11872824]
[1755404097947,2.76,192.48,192.39,2.11872824]
[1755404098139,2.76,192.46,192.39,2.11872824]
[1755404098342,2.76,192.44,192.39,2.11872824]
[1755404100340,2.76,192.44,192.38,348.94]
[1755404100544,1.32872824,192.45,192.38,348.94]
[1755404100740,2.76,192.42,192.35,2.11872824]
[1755404100940,2.76,192.38,192.32,1.32872824]
[1755404101136,2.76,192.36,192.3,2.11872824]
[1755404101748,4.78644041,192.35,192.3,2.11872824]
[1755404101949,2.76,192.34,192.28,5.1974]
[1755404102149,2.76,192.34,192.28,6.52612824]
[1755404102355,2.76,192.34,192.28,1.32872824]
[1755404102740,2.76,192.34,192.27,0.79]
[1755404102950,2.76,192.34,192.25,0.79]
[1755404104240,2.76,192.34,192.24,2.08092111]
[1755404104241,2.76,192.34,192.27,5.1976]
[1755404104445,2.76,192.33,192.19,0.79]
[1755404104641,2.76,192.3,192.2,0.79]
[1755404105250,2.76,192.3,192.23,5.1987]
[1755404105551,2.76,192.3,192.21,0.79]
[1755404107852,2.76,192.3,192.22,0.79]
[1755404111947,2.76,192.3,192.2,5.9895]
[1755404112540,2.76,192.3,192.2,5.1995]
[1755404112743,2.76,192.3,192.21,0.79]
[1755404116152,2.08092111,192.28,192.16,5.2006]
[1755404116351,7.47387388,192.27,192.17,0.79]
[1755404116654,2.76,192.26,192.21,0.79]
[1755404117554,2.76,192.26,192.22,0.8]
[1755404118051,2.76,192.26,192.19,0.8]
[1755404118443,2.76,192.26,192.17,2.08092111]
[1755404118444,2.76,192.26,192.17,2.88092111]
[1755404118653,2.76,192.26,192.17,0.8]
[1755404121646,2.76,192.26,192.16,5.2006]
[1755404121853,2.76,192.26,192.17,0.8]
[1755404123952,2.76,192.26,192.17,2.88092111]
[1755404124156,2.76,192.26,192.2,0.8]
[1755404129759,2.76,192.26,192.2,5.9995]
[1755404130350,2.76,192.26,192.21,0.8]
[1755404131159,4.72170871,192.25,192.21,0.8]
[1755404131360,2.76,192.26,192.21,5.9993]
[1755404131560,2.76,192.26,192.22,0.8]
[1755404132567,2.92,192.24,192.22,0.8]
[1755404133166,2.92,192.24,192.21,0.8]
[1755404133868,2.92,192.24,192.21,5.9992]
[1755404134363,2.92,192.24,192.22,0.8]
[1755404136072,2.92,192.24,192.21,0.8]
[1755404137266,2.92,192.22,192.21,0.8]
[1755404138267,7.66501365,192.22,192.21,0.8]
[1755404138771,7.66501365,192.22,192.21,1.33272119]
[1755404141072,2.92,192.22,192.21,1.33272119]
[1755404141277,7.68190304,192.22,192.21,1.33272119]
[1755404141772,7.68228595,192.22,192.21,1.33272119]
[1755404144272,11.42825746,192.22,192.21,1.33272119]
[1755404145171,2.92,192.21,192.19,5.9998]
[1755404145369,2.92,192.21,192.2,1.33272119]
[1755404145568,7.44388188,192.21,192.2,1.33272119]
[1755404146875,11.19270209,192.21,192.2,1.33272119]
[1755404147269,7.44388188,192.21,192.2,1.33272119]
[1755404147471,11.19503041,192.21,192.2,1.33272119]
[1755404150171,6.67114853,192.21,192.2,1.33272119]
[1755404150475,11.20736314,192.21,192.2,1.33272119]
[1755404152970,7.45621461,192.21,192.2,1.33272119]
[1755404153170,2.98,192.23,192.21,0.8]
[1755404153384,2.98,192.23,192.13,128.46]
[1755404153385,2.98,192.23,192.22,2.13272119]
[1755404153573,2.98,192.23,192.22,1.33272119]
[1755404154178,6.73667666,192.23,192.22,1.33272119]
[1755404154382,2.98,192.22,192.18,1.33272119]
[1755404155471,2.98,192.22,192.18,2.13272119]
[1755404155675,2.98,192.22,192.18,1.33272119]
[1755404157385,2.98,192.22,192.2,1.33272119]
[1755404158285,2.98,192.22,192.18,2.13272119]
[1755404158481,2.98,192.22,192.18,1.33272119]
[1755404158682,2.98,192.22,192.16,2.13272119]
[1755404158981,2.98,192.22,192.16,7.33342119]
[1755404159582,11.66711765,192.36,192.13,128.4]
[1755404159583,2.98,192.26,192.21,0.8]
[1755404159783,2.98,192.26,192.25,1.33272119]
[1755404159979,3.75522194,192.26,192.25,1.33272119]
[1755404160182,6.73522194,192.26,192.25,1.33272119]
[1755404160485,2.98,192.26,192.25,2.13272119]
[1755404160699,2.98,192.26,192.25,1.33272119]
[1755404162694,2.98,192.26,192.23,2.88135506]
[1755404163298,2.98,192.26,192.23,8.08005506]
[1755404164383,2.98,192.26,192.22,5.199]
[1755404164584,2.98,192.26,192.22,5.999]
[1755404164783,2.98,192.26,192.23,0.8]
[1755404164982,2.98,192.32,192.24,0.8]
[1755404165291,2.98,192.3,192.27,0.8]
[1755404165482,2.98,192.3,192.27,5.9975]
[1755404166488,2.98,192.3,192.27,5.1975]
[1755404166989,2.98,192.3,192.28,5.1974]
[1755404169690,2.98,192.29,192.28,0.8]
[1755404170194,2.98,192.29,192.28,5.1975]
[1755404172388,2.98,192.38,192.26,2.08135506]
[1755404172592,2.98,192.36,192.27,0.8]
[1755404172793,2.98,192.34,192.27,0.8]
[1755404173094,2.98,192.32,192.27,0.8]
[1755404174292,2.98,192.32,192.29,5.1971]
[1755404176992,2.98,192.32,192.3,5.1969]
[1755404178197,2.94,192.34,192.27,0.8]
[1755404178396,2.94,192.38,192.27,0.8]
[1755404178597,2.94,192.36,192.27,0.8]
[1755404178794,2.94,192.34,192.31,5.1964]
[1755404179500,2.94,192.34,192.32,5.1963]
[1755404180799,2.94,192.34,192.31,5.1966]
[1755404183398,2.94,192.34,192.32,5.1964]
[1755404184402,2.94,192.34,192.31,5.1966]
[1755404186101,2.94,192.34,192.26,2.08135506]
[1755404186305,3.72327667,192.33,192.26,2.88135506]
[1755404186509,2.94,192.32,192.26,0.8]
[1755404186805,2.94,192.32,192.28,5.1975]
[1755404187102,2.94,192.32,192.28,5.9975]
[1755404188301,2.94,192.32,192.28,5.1975]
[1755404189698,2.94,192.32,192.27,5.9977]
[1755404191602,2.94,192.32,192.27,5.1977]
[1755404192005,2.94,192.32,192.27,5.9977]
[1755404194806,2.94,192.32,192.25,5.998]
[1755404195110,2.94,192.27,192.18,0.8]
[1755404195499,2.94,192.27,192.22,0.8]
[1755404196104,2.94,192.34,192.17,2.08135506]
[1755404196307,2.94,192.32,192.22,0.8]
[1755404197312,3.72294831,192.31,192.22,0.8]
[1755404197513,2.94,192.3,192.22,0.8]
[1755404198214,2.94,192.3,192.28,5.1974]
[1755404200105,2.94,192.3,192.29,5.1972]
[1755404200408,2.94,192.3,192.29,5.9972]
[1755404200811,2.94,192.3,192.29,5.1972]
[1755404201412,2.94,192.3,192.27,5.1975]
[1755404201604,2.08135506,192.36,192.24,2.08135506]
[1755404201808,2.94,192.34,192.25,0.8]
[1755404202110,2.94,192.32,192.31,5.9965]
[1755404202309,2.94,192.32,192.31,5.1965]
[1755404202714,2.94,192.32,192.31,5.9965]
[1755404203705,2.94,192.32,192.31,5.1965]
[1755404204502,2.94,192.32,192.31,5.9965]
[1755404205207,2.94,192.32,192.31,5.1965]
[1755404205510,2.94,192.32,192.31,5.9965]
[1755404206713,2.94,192.32,192.31,5.1965]
[1755404207514,2.94,192.32,192.31,5.9965]
[1755404208713,2.94,192.32,192.31,5.1965]
[1755404209315,6.6693606,192.32,192.31,5.1965]
[1755404209813,2.08135506,192.39,192.32,5.1963]
[1755404210013,9.40863293,192.38,192.32,5.1963]
[1755404210215,9.40863293,192.37,192.29,0.8]
[1755404210516,2.8,192.35,192.31,5.1966]
[1755404210715,3.72922273,192.34,192.31,0.8]
[1755404210915,2.8,192.32,192.31,0.8]
[1755404211414,2.8,192.32,192.31,5.9967]
[1755404211609,2.8,192.32,192.31,5.1967]
[1755404211916,3.72926621,192.32,192.28,0.8]
[1755404212115,2.8,192.31,192.28,0.8]
[1755404212315,2.8,192.31,192.28,5.9974]
[1755404212510,2.8,192.31,192.28,0.8]
[1755404213011,2.8,192.3,192.21,2.08135506]
[1755404213220,2.8,192.3,192.22,0.8]
[1755404213918,2.08135506,192.33,192.21,2.08135506]
[1755404214113,2.8,192.31,192.25,0.8]
[1755404214614,2.8,192.31,192.3,5.1969]
[1755404214813,2.8,192.38,192.28,0.8]
[1755404215013,2.8,192.36,192.28,0.8]
[1755404215214,2.8,192.36,192.29,2.08135506]
[1755404215412,2.8,192.36,192.33,5.1959]
[1755404215613,2.8,192.36,192.3,0.8]
[1755404215911,2.8,192.36,192.34,5.1956]
[1755404216412,2.8,192.36,192.32,0.8]
[1755404216614,2.8,192.36,192.34,5.1958]
[1755404219017,2.8,192.42,192.35,5.1956]
[1755404219216,2.8,192.4,192.35,5.1956]
[1755404219410,2.8,192.38,192.33,0.8]
[1755404219613,2.8,192.36,192.34,5.1958]
[1755404222222,2.8,192.36,192.35,5.1956]
[1755404222622,2.8,192.39,192.31,0.8]
[1755404222819,3.72816031,192.38,192.31,0.8]
[1755404223020,2.8,192.37,192.35,5.1954]
[1755404223921,2.8,192.42,192.36,5.1953]
[1755404224126,2.8,192.4,192.36,5.1953]
[1755404224324,3.72753819,192.39,192.36,5.1953]
[1755404224525,3.72753819,192.38,192.36,5.1953]
[1755404224715,2.8,192.37,192.36,5.1953]
[1755404225130,2.8,192.38,192.35,0.8]
[1755404225326,2.8,192.37,192.36,0.8]
[1755404225524,2.08135506,192.46,192.32,2.08135506]
[1755404225723,2.8,192.38,192.37,0.8]
[1755404226122,2.8,192.38,192.35,0.8]
[1755404226329,2.8,192.38,192.37,5.1948]
[1755404228132,2.8,192.38,192.37,5.9948]
[1755404228629,2.8,192.38,192.33,0.8]
[1755404229330,2.8,192.37,192.33,0.8]
[1755404230220,2.08135506,192.46,192.36,5.1951]
[1755404230521,8.09195911,192.45,192.36,5.1951]
[1755404230723,2.8,192.43,192.36,5.1951]
[1755404230920,2.8,192.41,192.36,5.1951]
[1755404231329,2.8,192.41,192.3,0.79]
[1755404231529,2.8,192.39,192.3,0.79]
[1755404231831,2.8,192.37,192.3,0.79]
[1755404233234,2.8,192.37,192.33,5.1961]
[1755404235522,4.88135506,192.45,192.32,2.87135506]
[1755404235727,2.8,192.43,192.33,0.79]
[1755404235927,3.72084645,192.42,192.33,0.79]
[1755404236133,3.72084645,192.41,192.33,0.79]
[1755404236334,2.8,192.39,192.33,0.79]
[1755404236934,2.8,192.39,192.35,5.1954]
[1755404237436,2.8,192.39,192.33,0.79]
[1755404238333,2.8,192.39,192.36,5.1953]
[1755404239837,2.8,192.39,192.37,5.195]
[1755404240134,2.76,192.38,192.37,5.985]
[1755404240336,2.76,192.38,192.37,5.195]
[1755404242430,2.08135506,192.46,192.37,5.195]
[1755404242431,2.76,192.45,192.37,0.79]
[1755404242633,2.76,192.43,192.37,0.79]
[1755404243037,2.76,192.43,192.4,5.1942]
[1755404243441,2.76,192.43,192.38,0.79]
[1755404244139,2.76,192.43,192.39,5.1944]
[1755404245947,2.76,192.43,192.38,5.9847]
[1755404247047,2.76,192.43,192.39,5.1945]
[1755404247648,2.76,192.43,192.38,0.79]
[1755404249243,2.76,192.43,192.38,5.9847]
[1755404249449,2.76,192.43,192.36,0.79]
[1755404251240,2.76,192.43,192.38,5.1948]
[1755404254954,2.76,192.43,192.37,5.985]
[1755404257546,2.76,192.43,192.28,349.14]
[1755404257547,3.72361938,192.42,192.33,0.79]
[1755404257746,2.76,192.4,192.33,0.79]
[1755404257952,2.08135506,192.43,192.33,0.79]
[1755404257953,2.76,192.38,192.33,0.79]
[1755404258748,2.76,192.38,192.33,5.9859]
[1755404259152,3.7277304,192.37,192.33,5.9859]
[1755404259458,2.76,192.36,192.33,5.9859]
[1755404261264,5.82418496,192.46,192.32,0.79]
[1755404261466,8.06897335,192.45,192.36,0.79]
[1755404261762,2.76,192.44,192.41,2.08135506]
[1755404262061,2.76,192.43,192.41,2.87135506]
[1755404262263,2.76,192.43,192.42,0.79]
[1755404262454,2.76,192.43,192.42,5.9837]
[1755404262761,7.90554002,192.55,192.42,0.79]
[1755404262762,2.76,192.55,192.42,0.79]
[1755404262962,2.76,192.53,192.42,0.79]
[1755404263268,2.76,192.51,192.44,2.87135506]
[1755404263459,2.76,192.51,192.45,0.79]
[1755404263959,2.76,192.51,192.45,5.9827]
[1755404264264,2.76,192.57,192.37,0.79]
[1755404264455,2.76,192.55,192.45,5.1928]
[1755404264658,2.76,192.53,192.45,0.79]
[1755404264857,2.76,192.51,192.45,2.87135506]
[1755404265068,2.76,192.51,192.47,0.79]
[1755404265367,2.76,192.5,192.49,0.79]
[1755404265557,2.76,192.5,192.37,8.67831816]
[1755404265757,2.76,192.5,192.46,0.79]
[1755404265959,2.76,192.5,192.47,0.79]
[1755404266159,2.08135506,192.58,192.47,0.79]
[1755404266363,2.76,192.56,192.47,0.79]
[1755404266566,2.76,192.54,192.42,0.79]
[1755404266869,9.6387306,192.62,192.42,0.79]
[1755404266870,2.76,192.52,192.42,0.79]
[1755404267066,3.68139429,192.51,192.42,0.79]
[1755404267262,2.76,192.5,192.44,0.79]
[1755404268062,2.08135506,192.57,192.46,0.79]
[1755404268063,3.0,192.56,192.46,0.79]
[1755404268266,3.0,192.54,192.46,0.79]
[1755404268472,3.0,192.52,192.43,2.08135506]
[1755404268766,3.0,192.52,192.41,0.79]
[1755404269468,3.67945308,192.51,192.41,0.79]
[1755404269669,3.0,192.5,192.41,0.79]
[1755404270162,3.0,192.47,192.37,0.79]
[1755404270667,3.0,192.47,192.37,5.985]
[1755404270869,3.0,192.47,192.35,0.79]
[1755404271066,3.0,192.47,192.35,2.87135506]
[1755404271263,3.68046403,192.46,192.35,2.08135506]
[1755404271465,3.0,192.45,192.36,0.79]
[1755404272371,3.0,192.43,192.34,0.79]
[1755404272564,3.0,192.43,192.33,7.27725506]
[1755404272565,3.0,192.43,192.33,0.79]
[1755404272766,3.0,192.43,192.32,0.79]
[1755404273165,3.68149475,192.42,192.32,0.79]
[1755404273366,3.0,192.41,192.33,5.1961]
[1755404274265,3.0,192.41,192.33,5.9861]
[1755404277377,3.0,192.41,192.31,5.9865]
[1755404277568,3.67575778,192.4,192.29,0.79]
[1755404277771,3.0,192.39,192.29,0.79]
[1755404277969,3.67620211,192.38,192.29,0.79]
[1755404278174,3.0,192.37,192.29,0.79]
[1755404280374,3.0,192.37,192.28,140.1373]
[1755404280573,3.0,192.32,192.21,0.79]
[1755404280874,3.0,192.29,192.21,0.79]
[1755404281176,3.0,192.29,192.21,5.9892]
[1755404281470,3.0,192.29,192.21,0.79]
[1755404281878,3.0,192.29,192.17,349.12]
[1755404281879,3.0,192.37,192.24,0.79]
[1755404282071,3.0,192.35,192.24,0.79]
[1755404282677,3.0,192.35,192.26,0.79]
[1755404283672,3.0,192.35,192.28,5.1975]
[1755404284264,3.0,192.35,192.28,5.9875]
[1755404285077,3.0,192.35,192.28,5.1975]
[1755404285376,3.0,192.35,192.29,5.1971]
[1755404287471,3.0,192.35,192.28,5.9875]
[1755404287668,3.0,192.35,192.24,2.87135506]
[1755404287870,3.0,192.35,192.25,0.79]